bitfinex/quotes_BTCUSD_20240918
["timestamp","ask_amount","ask_price","bid_price","bid_amount"]
[1726680550995,0.501102,59868.0,59867.0,0.00164]
[1726680551437,0.167034,59868.0,59867.0,0.00164]
[1726680551665,0.16305367,59869.0,59867.0,0.00164]
[1726680551888,0.16305367,59869.0,59868.0,0.167034]
[1726680552111,0.36017717,59886.0,59873.0,0.032]
[1726680552112,0.48941435,59883.0,59873.0,0.032]
[1726680552322,0.167006,59878.0,59874.0,0.167016]
[1726680552529,0.04976018,59877.0,59874.0,0.167016]
[1726680552738,0.04976018,59877.0,59876.0,0.865057]
[1726680553014,0.25054284,59882.0,59880.0,0.002]
[1726680553233,0.166988,59885.0,59881.0,0.196996]
[1726680553451,0.15542535,59883.0,59881.0,0.196996]
[1726680554328,0.15542535,59883.0,59882.0,0.166995]
[1726680554957,0.15542535,59883.0,59882.0,0.168995]
[1726680555197,0.16305367,59886.0,59885.0,0.196986]
[1726680555413,0.25054284,59892.0,59887.0,0.166981]
[1726680555629,0.0505841,59888.0,59887.0,0.500943]
[1726680555860,0.00082,59888.0,59887.0,1.198867]
[1726680556089,0.00082,59888.0,59887.0,1.337867]
[1726680556993,0.00082,59888.0,59887.0,0.667943]
[1726680557206,0.00082,59888.0,59887.0,0.333981]
[1726680557419,0.00082,59888.0,59887.0,0.667943]
[1726680557631,0.00082,59888.0,59887.0,0.669943]
[1726680557850,0.01212292,59888.0,59887.0,0.669943]
[1726680558065,0.00082,59888.0,59887.0,0.669943]
[1726680558495,0.00082,59888.0,59887.0,0.670943]
[1726680558709,0.00082,59888.0,59887.0,1.004905]
[1726680559354,0.00082,59888.0,59887.0,1.003905]
[1726680560228,0.00082,59888.0,59887.0,1.429567]
[1726680560976,0.00082,59888.0,59887.0,1.430567]
[1726680561210,0.00082,59888.0,59887.0,1.429567]
[1726680561697,0.00082,59888.0,59887.0,1.440567]
[1726680561927,0.00082,59888.0,59887.0,1.429567]
[1726680562150,0.00082,59888.0,59887.0,1.441567]
[1726680562388,0.00082,59888.0,59887.0,1.429567]
[1726680562864,0.00082,59888.0,59887.0,1.60562067]
[1726680564205,0.00082,59888.0,59887.0,1.92658267]
[1726680564438,0.00082,59888.0,59887.0,2.03958267]
[1726680564657,0.00082,59888.0,59887.0,2.08965334]
[1726680564866,0.00082,59888.0,59887.0,2.07647728]
[1726680565081,0.00082,59888.0,59887.0,1.70662067]
[1726680565508,0.00082,59888.0,59887.0,1.69262067]
[1726680565738,0.00082,59888.0,59887.0,1.70662067]
[1726680566422,0.00082,59888.0,59887.0,1.443567]
[1726680566883,0.00082,59888.0,59887.0,1.445207]
[1726680568222,0.00082,59888.0,59887.0,1.60826067]
[1726680568440,0.00082,59888.0,59887.0,1.94222267]
[1726680569289,0.00082,59888.0,59887.0,1.60826067]
[1726680569943,0.00082,59888.0,59887.0,1.94222267]
[1726680571278,0.000821,59895.0,59894.0,1.35223]
[1726680571720,0.000821,59895.0,59894.0,1.686153]
[1726680572369,0.000821,59895.0,59894.0,1.84920667]
[1726680573024,0.000821,59895.0,59894.0,2.19612967]
[1726680573242,0.000821,59895.0,59894.0,2.26142967]
[1726680574582,0.000821,59895.0,59894.0,1.94150667]
[1726680574788,0.000821,59895.0,59894.0,1.93150667]
[1726680575002,0.000821,59895.0,59894.0,1.91750667]
[1726680575224,0.000821,59895.0,59894.0,1.93150667]
[1726680575669,0.000821,59895.0,59894.0,1.91750667]
[1726680575917,0.000821,59895.0,59894.0,1.93150667]
[1726680576133,0.000821,59895.0,59894.0,1.754453]
[1726680576560,0.000821,59895.0,59894.0,1.768453]
[1726680577874,0.000821,59895.0,59894.0,1.754453]
[1726680578309,0.000821,59895.0,59894.0,1.768453]
[1726680578548,0.000821,59895.0,59894.0,1.754453]
[1726680578969,0.000821,59895.0,59894.0,1.768453]
[1726680581271,0.000821,59895.0,59894.0,1.93150667]
[1726680583906,0.000821,59895.0,59894.0,1.768453]
[1726680584938,0.000821,59895.0,59894.0,1.754453]
[1726680585142,0.000821,59895.0,59894.0,1.768453]
[1726680585560,0.000821,59895.0,59894.0,1.754453]
[1726680585769,0.000821,59895.0,59894.0,1.768453]
[1726680587077,0.000821,59895.0,59894.0,1.26473]
[1726680587509,0.000821,59895.0,59894.0,0.930807]
[1726680588626,0.000821,59895.0,59894.0,1.26473]
[1726680592701,0.000821,59895.0,59894.0,1.26637]
[1726680593110,0.000821,59895.0,59894.0,1.600293]
[1726680597446,0.000821,59895.0,59894.0,1.691793]
[1726680599663,0.000821,59895.0,59894.0,1.99216486]
[1726680601229,0.000821,59895.0,59894.0,2.15521853]
[1726680601679,0.000821,59895.0,59894.0,2.57625488]
[1726680602836,0.000821,59895.0,59894.0,1.97816486]
[1726680603088,0.000821,59895.0,59894.0,1.99216486]
[1726680603289,0.000821,59895.0,59894.0,1.55318535]
[1726680603504,0.000821,59895.0,59894.0,1.21726235]
[1726680603713,0.000821,59895.0,59894.0,0.262601]
[1726680603946,0.000821,59895.0,59894.0,0.31266596]
[1726680604149,0.000821,59895.0,59894.0,0.262601]
[1726680604576,0.167779,59895.0,59894.0,0.00164]
[1726680604782,0.167779,59895.0,59894.0,0.06164]
[1726680605012,0.167779,59895.0,59894.0,0.03164]
[1726680605460,0.501696,59895.0,59894.0,0.03164]
[1726680605670,0.501696,59895.0,59894.0,0.00164]
[1726680605671,0.97563391,59895.0,59894.0,0.00164]
[1726680605875,0.80477058,59895.0,59894.0,0.00164]
[1726680606079,0.14084191,59895.0,59894.0,0.168601]
[1726680606297,0.05064191,59895.0,59894.0,0.00664]
[1726680606528,0.000821,59895.0,59894.0,0.00164]
[1726680606732,0.000821,59895.0,59894.0,0.00264]
[1726680606952,0.76394967,59895.0,59894.0,0.00264]
[1726680607167,1.14668585,59895.0,59894.0,0.00164]
[1726680607591,1.09886667,59895.0,59894.0,0.00164]
[1726680607805,1.09686667,59895.0,59894.0,0.00164]
[1726680608206,0.76294967,59895.0,59894.0,0.00164]
[1726680608408,0.000821,59895.0,59894.0,0.00164]
[1726680608537,0.000821,59895.0,59894.0,0.168601]
[1726680608754,0.000821,59895.0,59894.0,0.592524]
[1726680609788,0.001821,59895.0,59894.0,0.592524]
[1726680610651,0.001821,59895.0,59894.0,0.594524]
[1726680610865,0.001821,59895.0,59894.0,0.592524]
[1726680611501,0.000821,59895.0,59894.0,0.592524]
[1726680612364,0.000821,59895.0,59894.0,0.594524]
[1726680612779,0.000821,59895.0,59894.0,0.928447]
[1726680613073,0.000821,59895.0,59894.0,0.931447]
[1726680614591,0.000821,59895.0,59894.0,0.929447]
[1726680614809,0.000821,59895.0,59894.0,0.595524]
[1726680615249,0.000821,59895.0,59894.0,0.929447]
[1726680615877,0.000821,59895.0,59894.0,0.595524]
[1726680616301,0.000821,59895.0,59894.0,0.931447]
[1726680616726,0.000821,59895.0,59894.0,1.26537]
[1726680616939,0.000821,59895.0,59894.0,0.931447]
[1726680619394,0.000821,59895.0,59894.0,1.26537]
[1726680619812,0.000821,59895.0,59894.0,0.931447]
[1726680620254,0.000821,59895.0,59894.0,1.35757]
[1726680621771,0.000821,59895.0,59894.0,1.35457]
[1726680622200,0.000821,59895.0,59894.0,1.36257]
[1726680622631,0.000821,59895.0,59894.0,1.52562367]
[1726680622857,0.000821,59895.0,59894.0,2.08222339]
[1726680623094,0.000821,59895.0,59894.0,2.31607036]
[1726680624171,0.000821,59895.0,59894.0,2.16064501]
[1726680624916,0.000821,59895.0,59894.0,2.49367036]
[1726680625141,0.000821,59895.0,59894.0,2.82759336]
[1726680625353,0.000821,59895.0,59894.0,3.24986904]
[1726680626019,0.000821,59895.0,59894.0,3.27986904]
[1726680626742,0.0038922,59897.0,59896.0,1.900516]
[1726680626969,0.0038922,59897.0,59896.0,3.03514369]
[1726680627221,0.0038922,59897.0,59896.0,3.03314369]
[1726680627431,0.0038922,59897.0,59896.0,3.05651812]
[1726680628111,0.0002,59899.0,59898.0,0.63402535]
[1726680628333,0.0002,59899.0,59898.0,1.51882747]
[1726680628748,0.0002,59899.0,59898.0,1.74035678]
[1726680629190,0.0002,59899.0,59898.0,1.51882747]
[1726680630295,0.00011,59909.0,59908.0,0.243]
[1726680630517,0.00011,59909.0,59908.0,0.09]
[1726680630727,0.00011,59909.0,59908.0,0.924612]
[1726680631183,0.00011,59909.0,59908.0,1.258457]
[1726680631620,0.00011,59909.0,59908.0,1.272457]
[1726680631840,0.00011,59909.0,59908.0,1.258457]
[1726680633352,0.00011,59909.0,59908.0,1.268457]
[1726680633572,0.00011,59909.0,59908.0,1.260457]
[1726680634003,0.00011,59909.0,59908.0,1.273457]
[1726680634215,0.00011,59909.0,59908.0,1.260457]
[1726680634433,0.00011,59909.0,59908.0,1.274457]
[1726680634908,0.00011,59909.0,59908.0,1.260457]
[1726680635120,0.00011,59909.0,59908.0,1.274457]
[1726680635787,0.00011,59909.0,59908.0,1.608302]
[1726680636011,0.00011,59909.0,59908.0,1.703102]
[1726680636259,0.00011,59909.0,59908.0,1.96815567]
[1726680636475,0.00011,59909.0,59908.0,1.96615567]
[1726680636698,0.00011,59909.0,59908.0,2.01607696]
[1726680637139,0.00011,59909.0,59908.0,1.32437829]
[1726680637430,0.00011,59909.0,59908.0,1.274457]
[1726680637608,0.00011,59909.0,59908.0,1.260457]
[1726680638059,0.00011,59909.0,59908.0,1.274457]
[1726680638299,0.01227193,59909.0,59908.0,1.260457]
[1726680638510,0.00011,59909.0,59908.0,1.274457]
[1726680638965,0.00011,59909.0,59908.0,1.260457]
[1726680640401,0.00011,59909.0,59908.0,1.267457]
[1726680640612,0.01227193,59909.0,59908.0,1.260457]
[1726680640827,0.00011,59909.0,59908.0,1.260457]
[1726680641043,0.00011,59909.0,59908.0,1.274457]
[1726680641270,0.01227193,59909.0,59908.0,1.260457]
[1726680641499,0.00011,59909.0,59908.0,1.260457]
[1726680641712,0.00011,59909.0,59908.0,0.901612]
[1726680641924,0.00011,59909.0,59908.0,0.871612]
[1726680642148,0.01227193,59909.0,59908.0,0.901612]
[1726680642362,0.00011,59909.0,59908.0,0.931612]
[1726680642606,0.01227193,59909.0,59908.0,0.931612]
[1726680642821,0.00011,59909.0,59908.0,1.267457]
[1726680643040,0.01227193,59909.0,59908.0,1.267457]
[1726680643259,0.00011,59909.0,59908.0,2.19820067]
[1726680643507,0.00011,59909.0,59908.0,2.34907069]
[1726680643999,0.00011,59909.0,59908.0,2.36207069]
[1726680644210,0.00011,59909.0,59908.0,2.27867644]
[1726680644420,0.00011,59909.0,59908.0,2.07901702]
[1726680644643,0.00011,59909.0,59908.0,2.09301702]
[1726680644865,0.00011,59909.0,59908.0,1.784202]
[1726680645559,0.00011,59909.0,59908.0,1.770202]
[1726680645777,0.00011,59909.0,59908.0,1.784202]
[1726680647576,0.00011,59909.0,59908.0,1.770202]
[1726680648050,0.00011,59909.0,59908.0,1.94725567]
[1726680648264,0.00011,59909.0,59908.0,1.93325567]
[1726680648738,0.00011,59909.0,59908.0,1.94725567]
[1726680651087,0.00011,59909.0,59908.0,2.12974915]
[1726680651305,0.00011,59909.0,59908.0,2.50861276]
[1726680651739,0.00011,59909.0,59908.0,2.85234882]
[1726680652621,0.00011,59909.0,59908.0,2.84034882]
[1726680652837,0.00011,59909.0,59908.0,2.85434882]
[1726680653506,0.00011,59909.0,59908.0,2.75463115]
[1726680653997,0.000931,59909.0,59908.0,2.72963115]
[1726680654224,0.000931,59909.0,59908.0,2.84027824]
[1726680654445,0.000931,59909.0,59908.0,2.47643324]
[1726680654660,0.000931,59909.0,59908.0,2.48054218]
[1726680655106,0.000931,59909.0,59908.0,2.35589509]
[1726680655350,0.000931,59909.0,59908.0,2.34189509]
[1726680655850,0.000931,59909.0,59908.0,2.25549582]
[1726680656085,0.000931,59909.0,59908.0,1.608302]
[1726680656778,0.000931,59909.0,59908.0,1.274457]
[1726680657444,0.45801002,59909.0,59904.0,0.001642]
[1726680657668,0.65621635,59905.0,59904.0,0.001642]
[1726680657901,1.20298216,59905.0,59904.0,0.001642]
[1726680658157,1.53684316,59905.0,59904.0,0.001642]
[1726680658385,1.54910046,59905.0,59904.0,0.001642]
[1726680659076,1.54910046,59905.0,59904.0,0.002642]
[1726680659288,1.21523946,59905.0,59904.0,0.001642]
[1726680660787,1.22923946,59905.0,59904.0,0.002642]
[1726680661239,0.0122573,59905.0,59904.0,0.001642]
[1726680661461,0.66847365,59905.0,59904.0,0.001642]
[1726680661686,1.17426439,59905.0,59904.0,0.002642]
[1726680661905,1.57517208,59905.0,59904.0,0.001642]
[1726680662355,1.7000764,59905.0,59904.0,0.001642]
[1726680662572,0.834737,59899.0,59894.0,0.25218284]
[1726680662794,1.48711102,59899.0,59894.0,0.00164]
[1726680663016,1.49888149,59899.0,59894.0,0.00164]
[1726680663519,0.16719582,59899.0,59894.0,0.00164]
[1726680663749,0.01177047,59899.0,59898.0,0.258592]
[1726680664180,0.32235135,59907.0,59898.0,0.091642]
[1726680664399,0.25054284,59902.0,59901.0,0.03]
[1726680664620,0.32236435,59902.0,59901.0,0.03]
[1726680664835,0.15542535,59902.0,59901.0,0.03]
[1726680665051,0.16719582,59902.0,59901.0,0.03]
[1726680665699,0.16819582,59902.0,59901.0,0.03]
[1726680667224,0.16819582,59902.0,59898.0,0.003642]
[1726680667225,0.166947,59899.0,59898.0,0.001642]
[1726680667646,0.17111887,59900.0,59898.0,0.001642]
[1726680667858,0.01177047,59899.0,59898.0,0.001642]
[1726680668719,0.01177047,59899.0,59898.0,0.031642]
[1726680668947,0.01177047,59899.0,59898.0,0.535492]
[1726680669176,0.000821,59905.0,59904.0,0.5008]
[1726680669407,0.000821,59905.0,59903.0,0.196936]
[1726680669867,0.000821,59905.0,59904.0,0.166933]
[1726680670081,0.000821,59905.0,59903.0,0.196936]
[1726680670974,0.000821,59905.0,59904.0,0.196933]
[1726680671823,0.003821,59905.0,59904.0,0.196933]
[1726680672039,0.003821,59905.0,59904.0,0.03]
[1726680672253,0.000821,59905.0,59904.0,0.03]
[1726680672493,0.000821,59905.0,59904.0,0.032]
[1726680672940,0.000821,59905.0,59904.0,0.198933]
[1726680673393,0.000821,59905.0,59904.0,0.032]
[1726680673654,0.000821,59905.0,59904.0,0.198933]
[1726680673885,0.167751,59905.0,59904.0,0.002]
[1726680674113,0.66883947,59905.0,59904.0,0.002]
[1726680674346,0.166938,59903.0,59899.0,0.256947]
[1726680674561,0.000821,59905.0,59904.0,0.166933]
[1726680675214,0.000821,59905.0,59904.0,0.896667]
[1726680675426,0.000821,59905.0,59904.0,1.260534]
[1726680676345,0.000821,59905.0,59904.0,0.928667]
[1726680676996,0.000821,59905.0,59904.0,1.260534]
[1726680678113,0.000821,59905.0,59904.0,0.928309]
[1726680678346,0.000821,59905.0,59904.0,1.262176]
[1726680678564,0.003821,59905.0,59904.0,0.928309]
[1726680678795,0.000821,59905.0,59904.0,0.926309]
[1726680679235,0.000821,59905.0,59904.0,1.260176]
[1726680679456,0.001821,59905.0,59904.0,1.268176]
[1726680679890,0.001821,59905.0,59904.0,0.934309]
[1726680680523,0.001821,59905.0,59904.0,1.268176]
[1726680680736,0.001821,59905.0,59904.0,0.934309]
[1726680681650,0.001821,59905.0,59904.0,1.43122967]
[1726680682103,0.001821,59905.0,59904.0,1.76709667]
[1726680682345,0.001821,59905.0,59904.0,1.99029667]
[1726680682588,0.000931,59909.0,59908.0,0.968612]
[1726680682829,0.000931,59909.0,59908.0,1.54788235]
[1726680683059,0.000931,59909.0,59908.0,2.52782602]
[1726680683279,0.0070535,59915.0,59914.0,0.632716]
[1726680683509,0.0070535,59915.0,59914.0,1.84693398]
[1726680683736,0.0070535,59915.0,59914.0,2.59436728]
[1726680683966,0.0070535,59915.0,59914.0,2.52983902]
[1726680684403,0.0070535,59915.0,59914.0,2.65231481]
[1726680684621,0.0070535,59915.0,59914.0,2.19402802]
[1726680684875,0.0070535,59915.0,59914.0,2.04818353]
[1726680685096,0.0070535,59915.0,59914.0,1.94860267]
[1726680685537,0.0070535,59915.0,59914.0,1.9983903]
[1726680685984,0.0070535,59915.0,59914.0,1.8983903]
[1726680686221,0.0070535,59915.0,59914.0,1.52879167]
[1726680686467,0.0070535,59915.0,59914.0,1.51479167]
[1726680686753,0.0070535,59915.0,59914.0,1.52879167]
[1726680688567,0.0070535,59915.0,59914.0,1.86260267]
[1726680689307,0.0070535,59915.0,59914.0,1.96260267]
[1726680690576,0.0078745,59915.0,59914.0,1.94860267]
[1726680690802,0.0078745,59915.0,59914.0,1.96260267]
[1726680692468,0.0078745,59915.0,59914.0,1.94860267]
[1726680692716,0.0078745,59915.0,59914.0,1.96260267]
[1726680692969,0.0078745,59915.0,59914.0,1.94860267]
[1726680693457,0.0078745,59915.0,59914.0,1.96260267]
[1726680699273,0.0078745,59915.0,59914.0,1.62879167]
[1726680699527,0.0078745,59915.0,59914.0,1.52879167]
[1726680699761,0.0078745,59915.0,59914.0,1.43739167]
[1726680701729,0.0078745,59915.0,59914.0,0.938527]
[1726680701989,0.0078745,59915.0,59914.0,0.940527]
[1726680702216,0.0078745,59915.0,59914.0,0.604716]
[1726680702449,0.0078745,59915.0,59914.0,0.104]
[1726680702684,0.166911,59912.0,59911.0,0.001642]
[1726680702918,0.500733,59912.0,59911.0,0.001642]
[1726680703190,1.00992327,59912.0,59911.0,0.001642]
[1726680703404,1.42464527,59912.0,59911.0,0.001642]
[1726680704307,1.09082327,59912.0,59911.0,0.001642]
[1726680705921,1.09782327,59912.0,59911.0,0.002642]
[1726680706147,1.09082327,59912.0,59911.0,0.001642]
[1726680706371,1.09782327,59912.0,59911.0,0.002642]
[1726680706829,1.09782327,59912.0,59911.0,0.001642]
[1726680706830,0.75700127,59912.0,59911.0,0.001642]
[1726680707076,0.75700127,59912.0,59911.0,0.532384]
[1726680707077,0.0123146,59912.0,59911.0,0.532384]
[1726680707304,0.0193146,59912.0,59911.0,0.927212]
[1726680707529,0.007,59912.0,59911.0,1.26104]
[1726680707756,0.007,59912.0,59911.0,1.594868]
[1726680708512,0.007,59912.0,59911.0,1.596868]
[1726680708738,0.0078745,59915.0,59914.0,1.260338]
[1726680709867,0.0078745,59915.0,59914.0,1.75720267]
[1726680711021,0.0078745,59915.0,59914.0,2.03210267]
[1726680711916,0.0078745,59915.0,59914.0,2.04110267]
[1726680712209,0.0078745,59915.0,59914.0,2.03210267]
[1726680712656,0.0078745,59915.0,59914.0,2.04610267]
[1726680715161,0.0078745,59915.0,59914.0,2.37991367]
[1726680716955,0.0078745,59915.0,59914.0,2.04410267]
[1726680717193,0.0078745,59915.0,59914.0,2.04610267]
[1726680719891,0.0078745,59915.0,59914.0,2.09587753]
[1726680720352,0.0078745,59915.0,59914.0,2.04610267]
[1726680720802,0.0078745,59915.0,59914.0,2.37991367]
[1726680721121,0.0078745,59915.0,59914.0,2.14770834]
[1726680721247,0.0078745,59915.0,59914.0,2.17260976]
[1726680721481,0.0078745,59915.0,59914.0,2.37991367]
[1726680721713,0.0078745,59915.0,59914.0,2.38191367]
[1726680721939,0.0078745,59915.0,59914.0,2.37991367]
[1726680722397,0.0078745,59915.0,59914.0,2.36591367]
[1726680722838,0.0078745,59915.0,59914.0,2.37991367]
[1726680723055,0.0078745,59915.0,59914.0,2.36591367]
[1726680723276,0.0078745,59915.0,59914.0,2.04610267]
[1726680723954,0.0078745,59915.0,59914.0,1.94940267]
[1726680724859,0.0078745,59915.0,59914.0,2.04901519]
[1726680725097,0.0078745,59915.0,59914.0,1.94940267]
[1726680725544,0.0078745,59915.0,59914.0,2.04901519]
[1726680725765,0.0078745,59915.0,59914.0,1.70776152]
[1726680725987,0.0078745,59915.0,59914.0,1.68288555]
[1726680726211,0.0078745,59915.0,59914.0,1.65797795]
[1726680726475,0.0078745,59915.0,59914.0,1.65798566]
[1726680726704,0.0078745,59915.0,59914.0,1.608149]
[1726680727184,0.0078745,59915.0,59914.0,1.594149]
[1726680727431,0.0078745,59915.0,59914.0,1.66888555]
[1726680727675,0.0078745,59915.0,59914.0,1.608149]
[1726680728619,0.0078745,59915.0,59914.0,1.6829042]
[1726680728840,0.0078745,59915.0,59914.0,1.84595787]
[1726680729567,0.0078745,59915.0,59914.0,1.77120267]
[1726680729808,0.0078745,59915.0,59914.0,1.8459563]
[1726680730280,0.0078745,59915.0,59914.0,1.77120267]
[1726680731179,0.0078745,59915.0,59914.0,1.87087627]
[1726680732081,0.0078745,59915.0,59914.0,1.77120267]
[1726680732317,0.0078745,59915.0,59914.0,1.75720267]
[1726680732551,0.0078745,59915.0,59914.0,1.80704967]
[1726680732758,0.0078745,59915.0,59914.0,1.82104967]
[1726680733202,0.0078745,59915.0,59914.0,1.85687627]
[1726680733425,0.0078745,59915.0,59914.0,1.87087627]
[1726680733649,0.0078745,59915.0,59914.0,1.77120267]
[1726680733867,0.0078745,59915.0,59914.0,1.87087627]
[1726680734091,0.0078745,59915.0,59914.0,1.85687627]
[1726680734582,0.0078745,59915.0,59914.0,1.75720267]
[1726680735028,0.0078745,59915.0,59914.0,1.88179467]
[1726680735688,0.0078745,59915.0,59914.0,1.89579467]
[1726680736135,0.0078745,59915.0,59914.0,1.88179467]
[1726680737032,0.0078745,59915.0,59914.0,1.89579467]
[1726680738381,0.0078745,59915.0,59914.0,1.89582922]
[1726680739275,0.0078745,59915.0,59914.0,2.22964022]
[1726680739516,0.0078745,59915.0,59914.0,1.89582922]
[1726680739972,0.0078745,59915.0,59914.0,1.99582922]
[1726680740201,0.0078745,59915.0,59914.0,1.99790267]
[1726680740433,0.0078745,59915.0,59914.0,2.14745453]
[1726680740666,0.0078745,59915.0,59914.0,2.33171367]
[1726680741146,0.0078745,59915.0,59914.0,2.48126553]
[1726680741377,0.0078745,59915.0,59914.0,2.33171367]
[1726680742091,0.0078745,59915.0,59914.0,2.83807653]
[1726680742353,0.25042363,59929.0,59927.0,1.97365035]
[1726680742604,0.25042363,59929.0,59927.0,2.21890402]
[1726680742605,0.000721,59928.0,59927.0,2.21890402]
[1726680742859,0.000721,59928.0,59927.0,2.55264302]
[1726680743399,0.000721,59928.0,59927.0,2.67711759]
[1726680743629,0.000721,59928.0,59927.0,2.55264302]
[1726680743885,0.000721,59928.0,59927.0,2.23290402]
[1726680744369,0.000721,59928.0,59927.0,2.15795988]
[1726680744617,0.000721,59928.0,59927.0,2.17195988]
[1726680744855,0.000721,59928.0,59927.0,2.04747867]
[1726680745073,0.000721,59928.0,59927.0,2.03347867]
[1726680745301,0.000721,59928.0,59927.0,2.14705154]
[1726680746217,0.000721,59928.0,59927.0,2.04747867]
[1726680746440,0.000721,59928.0,59927.0,2.14705189]
[1726680746668,0.000721,59928.0,59927.0,2.04747867]
[1726680746900,0.000721,59928.0,59927.0,2.03347867]
[1726680747127,0.000721,59928.0,59927.0,2.67712423]
[1726680747377,0.000721,59928.0,59927.0,2.69112423]
[1726680747614,0.000721,59928.0,59927.0,2.67712423]
[1726680748067,0.000721,59928.0,59927.0,2.69112423]
[1726680748290,0.000721,59928.0,59927.0,2.55264302]
[1726680748567,0.000721,59928.0,59927.0,2.69112423]
[1726680748781,0.000721,59928.0,59927.0,2.67712423]
[1726680749855,0.000721,59928.0,59927.0,2.15795988]
[1726680750296,0.000721,59928.0,59927.0,2.20290402]
[1726680750736,0.000721,59928.0,59927.0,2.18890402]
[1726680750965,0.000721,59928.0,59927.0,2.20290402]
[1726680751435,0.000721,59928.0,59927.0,2.18890402]
[1726680751665,0.000721,59928.0,59927.0,2.04747867]
[1726680751877,0.000721,59928.0,59927.0,2.03347867]
[1726680752338,0.000721,59928.0,59927.0,2.04747867]
[1726680753721,0.000721,59928.0,59927.0,2.03347867]
[1726680754181,0.000721,59928.0,59927.0,2.04747867]
[1726680754629,0.000721,59928.0,59927.0,2.03347867]
[1726680754857,0.000721,59928.0,59927.0,2.04747867]
[1726680757129,0.000721,59928.0,59927.0,1.274086]
[1726680757350,0.000721,59928.0,59927.0,1.39890011]
[1726680757575,0.000721,59928.0,59927.0,1.37394996]
[1726680757819,0.000721,59928.0,59927.0,1.32402578]
[1726680758057,0.000721,59928.0,59927.0,0.908347]
[1726680758286,0.000721,59928.0,59927.0,0.864347]
[1726680758526,0.000721,59928.0,59927.0,0.866347]
[1726680758763,0.000721,59928.0,59927.0,0.926347]
[1726680759004,0.000721,59928.0,59927.0,0.940347]
[1726680759489,0.000721,59928.0,59927.0,1.274086]
[1726680760413,0.000721,59928.0,59927.0,1.42313967]
[1726680760850,0.000721,59928.0,59927.0,1.43313967]
[1726680761079,0.000721,59928.0,59927.0,1.42313967]
[1726680761521,0.000721,59928.0,59927.0,1.43713967]
[1726680761961,0.000721,59928.0,59927.0,1.84578241]
[1726680762187,0.000721,59928.0,59927.0,1.89569278]
[1726680762411,0.000721,59928.0,59927.0,1.89577202]
[1726680762628,0.000721,59928.0,59927.0,1.89576901]
[1726680763072,0.000721,59928.0,59927.0,1.77087867]
[1726680763304,0.000721,59928.0,59927.0,1.89574156]
[1726680763523,0.000721,59928.0,59927.0,1.56365397]
[1726680763817,0.000721,59928.0,59927.0,1.43877967]
[1726680764043,0.000721,59928.0,59927.0,1.89739134]
[1726680764266,0.000721,59928.0,59927.0,1.88339196]
[1726680764491,0.000721,59928.0,59927.0,1.89739196]
[1726680764931,0.000721,59928.0,59927.0,1.88339196]
[1726680765162,0.000721,59928.0,59927.0,2.02794402]
[1726680766775,0.000721,59928.0,59927.0,1.87251867]
[1726680766977,0.000721,59928.0,59927.0,1.85851867]
[1726680767233,0.000721,59928.0,59927.0,1.87251867]
[1726680768103,0.000721,59928.0,59927.0,1.85851867]
[1726680768580,0.000721,59928.0,59927.0,1.87251867]
[1726680768820,0.000721,59928.0,59927.0,2.02794402]
[1726680769040,0.000721,59928.0,59927.0,1.90251867]
[1726680769263,0.000721,59928.0,59927.0,2.23625767]
[1726680769944,0.000721,59928.0,59927.0,1.90251867]
[1726680770635,0.000721,59928.0,59927.0,2.23625767]
[1726680771081,0.000721,59928.0,59927.0,1.90251867]
[1726680771562,0.000721,59928.0,59927.0,2.23625767]
[1726680771782,0.000721,59928.0,59927.0,1.90251867]
[1726680772934,0.000721,59928.0,59927.0,1.87251867]
[1726680774508,0.000721,59928.0,59927.0,1.56371872]
[1726680774745,0.000721,59928.0,59927.0,1.43877967]
[1726680774960,0.000721,59928.0,59927.0,1.56372891]
[1726680775396,0.000721,59928.0,59927.0,1.43877967]
[1726680775611,0.000721,59928.0,59927.0,1.53187967]
[1726680775827,0.000721,59928.0,59927.0,1.86561867]
[1726680776919,0.000721,59928.0,59927.0,1.85161867]
[1726680777583,0.000721,59928.0,59927.0,1.86561867]
[1726680778258,0.000721,59928.0,59927.0,1.53187967]
[1726680778477,0.000721,59928.0,59927.0,1.51787967]
[1726680778707,0.000721,59928.0,59927.0,1.53187967]
[1726680778922,0.000721,59928.0,59927.0,1.86561867]
[1726680779319,0.000721,59928.0,59927.0,2.29510183]
[1726680779539,0.000721,59928.0,59927.0,2.4451355]
[1726680779973,0.000721,59928.0,59927.0,2.44509751]
[1726680780191,0.000721,59928.0,59927.0,2.43109751]
[1726680780615,0.000721,59928.0,59927.0,2.29506152]
[1726680780831,0.000721,59928.0,59927.0,2.2949768]
[1726680781053,0.000721,59928.0,59927.0,2.44499868]
[1726680781279,0.000721,59928.0,59927.0,2.01815405]
[1726680781493,0.000721,59928.0,59927.0,1.43877967]
[1726680782365,0.000721,59928.0,59927.0,1.77251867]
[1726680783278,0.000721,59928.0,59927.0,2.20259621]
[1726680783525,0.000721,59928.0,59927.0,2.35261246]
[1726680785166,0.000721,59928.0,59927.0,2.47969621]
[1726680785651,0.000721,59928.0,59927.0,2.86643521]
[1726680787267,0.000721,59928.0,59927.0,2.85243521]
[1726680787477,0.000721,59928.0,59927.0,2.85443521]
[1726680787742,1e-06,59928.0,59927.0,3.26217421]
[1726680787959,0.0038922,59933.0,59932.0,2.14041]
[1726680788175,0.0038922,59933.0,59932.0,2.98526656]
[1726680788389,0.0038922,59933.0,59932.0,3.32097756]
[1726680789729,2e-07,59933.0,59932.0,3.32097756]
[1726680789949,2e-07,59933.0,59932.0,3.41042734]
[1726680790873,2e-07,59933.0,59932.0,3.42442734]
[1726680791109,0.000821,59938.0,59937.0,2.019256]
[1726680791320,0.000821,59938.0,59937.0,2.98811256]
[1726680791978,0.000821,59938.0,59937.0,3.40479556]
[1726680793110,0.32822363,59967.0,59937.0,3.40479556]
[1726680793111,5e-07,59951.0,59950.0,0.305]
[1726680793331,5e-07,59951.0,59950.0,2.87488669]
[1726680793550,5e-07,59951.0,59950.0,2.98771656]
[1726680793764,5e-07,59951.0,59950.0,3.32132756]
[1726680794453,1.0010514,59959.0,59958.0,0.448783]